[Event "*** Titled Tuesday Blitz"]
[Site "Chess.com"]
[Date "2020.04.28"]
[Round "3"]
[White "Lysiak_Poltorak"]
[Black "Natalya_Buksa"]
[Result "1-0"]
[WhiteElo "2325"]
[BlackElo "2520"]
[TimeControl "180+1"]
[EndTime "10:32:57 PDT"]
[Termination "Lysiak_Poltorak won by checkmate"]

1. e4 {[%clk 0:03:00.9]} 1... c5 {[%clk 0:02:59.2]} 2. Nf3 {[%clk 0:03:00.9]}
2... Nc6 {[%clk 0:02:59.6]} 3. d4 {[%clk 0:03:01.2]} 3... cxd4 {[%clk
0:03:00.5]} 4. Nxd4 {[%clk 0:03:01.8]} 4... Nf6 {[%clk 0:03:01.2]} 5. Nc3 {[%clk
0:03:01.4]} 5... e5 {[%clk 0:03:01.6]} 6. Ndb5 {[%clk 0:03:01.4]} 6... d6 {[%clk
0:03:02.1]} 7. Bg5 {[%clk 0:03:01.4]} 7... a6 {[%clk 0:03:02.5]} 8. Na3 {[%clk
0:03:01.5]} 8... b5 {[%clk 0:03:03.1]} 9. Nd5 {[%clk 0:03:01.7]} 9... Be7 {[%clk
0:03:03.5]} 10. Bxf6 {[%clk 0:03:02.1]} 10... Bxf6 {[%clk 0:03:03.8]} 11. c3
{[%clk 0:03:01.7]} 11... Rb8 {[%clk 0:03:04.1]} 12. Nc2 {[%clk 0:03:01.8]} 12...
Bg5 {[%clk 0:03:04.6]} 13. a4 {[%clk 0:02:59.7]} 13... bxa4 {[%clk 0:03:04.8]}
14. Ncb4 {[%clk 0:02:59.5]} 14... Nxb4 {[%clk 0:03:05.2]} 15. cxb4 {[%clk
0:03:00.4]} 15... Bd7 {[%clk 0:03:00]} 16. Bxa6 {[%clk 0:03:00.3]} 16... O-O
{[%clk 0:03:00.5]} 17. O-O {[%clk 0:02:59]} 17... Bc6 {[%clk 0:02:58]} 18. Rxa4
{[%clk 0:01:54.7]} 18... Bxa4 {[%clk 0:02:56.4]} 19. Qxa4 {[%clk 0:01:55.6]}
19... Kh8 {[%clk 0:02:57]} 20. Bd3 {[%clk 0:01:51.7]} 20... Qe8 {[%clk
0:02:46.5]} 21. b5 {[%clk 0:01:49.3]} 21... Bd8 {[%clk 0:02:46.5]} 22. Qa6
{[%clk 0:01:46.9]} 22... Qd7 {[%clk 0:02:38.9]} 23. Rc1 {[%clk 0:01:42.9]} 23...
g6 {[%clk 0:01:51.9]} 24. b6 {[%clk 0:01:33.5]} 24... f5 {[%clk 0:01:37.6]} 25.
Qa7 {[%clk 0:01:29.2]} 25... Rb7 {[%clk 0:01:33.2]} 26. Qa6 {[%clk 0:01:22.3]}
26... Bg5 {[%clk 0:00:58.2]} 27. Rc7 {[%clk 0:01:15.4]} 27... Rxc7 {[%clk
0:00:56.9]} 28. bxc7 {[%clk 0:01:16.3]} 28... fxe4 {[%clk 0:00:55.8]} 29. Bxe4
{[%clk 0:01:14.2]} 29... Qg4 {[%clk 0:00:47.8]} 30. f3 {[%clk 0:01:10]} 30...
Qc8 {[%clk 0:00:38.2]} 31. Qxc8 {[%clk 0:00:58.8]} 31... Rxc8 {[%clk 0:00:39.1]}
32. b4 {[%clk 0:00:58.6]} 32... Bd2 {[%clk 0:00:37.3]} 33. b5 {[%clk 0:00:58.1]}
33... Ba5 {[%clk 0:00:37.8]} 34. b6 {[%clk 0:00:54.9]} 34... Bxb6+ {[%clk
0:00:38.1]} 35. Nxb6 {[%clk 0:00:54]} 35... Rxc7 {[%clk 0:00:39]} 36. Kf2 {[%clk
0:00:52.6]} 36... Kg7 {[%clk 0:00:36.3]} 37. Ke3 {[%clk 0:00:45.6]} 37... Rc3+
{[%clk 0:00:36.6]} 38. Kf2 {[%clk 0:00:41.1]} 38... Rc5 {[%clk 0:00:32.9]} 39.
h4 {[%clk 0:00:36.4]} 39... Kf7 {[%clk 0:00:32.9]} 40. Kg3 {[%clk 0:00:27.4]}
40... Ke6 {[%clk 0:00:32.6]} 41. Kg4 {[%clk 0:00:20.6]} 41... Rb5 {[%clk
0:00:32.4]} 42. Na4 {[%clk 0:00:19.4]} 42... d5 {[%clk 0:00:29.3]} 43. Nc3
{[%clk 0:00:18.9]} 43... Rb2 {[%clk 0:00:09.5]} 44. Nxd5 {[%clk 0:00:16.7]}
44... Rxg2+ {[%clk 0:00:08]} 45. Kh3 {[%clk 0:00:16.6]} 45... Ra2 {[%clk
0:00:08.1]} 46. Ne3 {[%clk 0:00:16.2]} 46... Kf6 {[%clk 0:00:07.5]} 47. Ng4+
{[%clk 0:00:15.9]} 47... Ke6 {[%clk 0:00:07]} 48. Kg3 {[%clk 0:00:16.1]} 48...
Ra1 {[%clk 0:00:07.2]} 49. Nf2 {[%clk 0:00:15.9]} 49... h5 {[%clk 0:00:07.5]}
50. Nh3 {[%clk 0:00:15.6]} 50... Rf1 {[%clk 0:00:06.7]} 51. Ng5+ {[%clk
0:00:15.4]} 51... Kf6 {[%clk 0:00:07.5]} 52. Bd3 {[%clk 0:00:15.2]} 52... Rg1+
{[%clk 0:00:07.3]} 53. Kh3 {[%clk 0:00:14.7]} 53... Rd1 {[%clk 0:00:07.7]} 54.
Ne4+ {[%clk 0:00:14.2]} 54... Ke6 {[%clk 0:00:08.1]} 55. Bc4+ {[%clk 0:00:14.3]}
55... Kf5 {[%clk 0:00:07.8]} 56. Kg3 {[%clk 0:00:13.1]} 56... Rd4 {[%clk
0:00:07.4]} 57. Be2 {[%clk 0:00:11.3]} 57... Ke6 {[%clk 0:00:07.4]} 58. Ba6
{[%clk 0:00:10]} 58... Ke7 {[%clk 0:00:07.3]} 59. Bc8 {[%clk 0:00:09.5]} 59...
Ra4 {[%clk 0:00:07.5]} 60. Bh3 {[%clk 0:00:09.8]} 60... Ra3 {[%clk 0:00:07.8]}
61. Ng5 {[%clk 0:00:09.4]} 61... Ra1 {[%clk 0:00:07.8]} 62. Bg2 {[%clk 0:00:09]}
62... Ra3 {[%clk 0:00:08.1]} 63. Kf2 {[%clk 0:00:08.9]} 63... Kf6 {[%clk
0:00:08.4]} 64. Bh3 {[%clk 0:00:07.9]} 64... Ra2+ {[%clk 0:00:08.7]} 65. Kg3
{[%clk 0:00:06.8]} 65... Ra3 {[%clk 0:00:09.1]} 66. Ne4+ {[%clk 0:00:06.9]}
66... Ke7 {[%clk 0:00:09.5]} 67. Bf1 {[%clk 0:00:06.8]} 67... Rb3 {[%clk
0:00:07.6]} 68. Bc4 {[%clk 0:00:06.7]} 68... Ra3 {[%clk 0:00:07.9]} 69. Bg8
{[%clk 0:00:06.5]} 69... Ra1 {[%clk 0:00:07.9]} 70. Kf2 {[%clk 0:00:04.1]} 70...
Ra3 {[%clk 0:00:07.2]} 71. Ng5 {[%clk 0:00:01.9]} 71... Ra8 {[%clk 0:00:07.4]}
72. Bd5 {[%clk 0:00:02.1]} 72... Ra5 {[%clk 0:00:06.3]} 73. Be4 {[%clk
0:00:02.5]} 73... Ra2+ {[%clk 0:00:06.3]} 74. Kg3 {[%clk 0:00:02.3]} 74... Kf6
{[%clk 0:00:06.8]} 75. Nh7+ {[%clk 0:00:02.7]} 75... Kg7 {[%clk 0:00:06.8]} 76.
Ng5 {[%clk 0:00:03.2]} 76... Rd2 {[%clk 0:00:07.4]} 77. Ne6+ {[%clk 0:00:03.1]}
77... Kf6 {[%clk 0:00:08]} 78. Nc5 {[%clk 0:00:03.2]} 78... Rd4 {[%clk
0:00:07.6]} 79. Nd3 {[%clk 0:00:03.4]} 79... Ra4 {[%clk 0:00:06.8]} 80. Nf2
{[%clk 0:00:03.3]} 80... Ra3 {[%clk 0:00:06.6]} 81. Bd3 {[%clk 0:00:03.4]} 81...
g5 {[%clk 0:00:06.7]} 82. Ne4+ {[%clk 0:00:03.5]} 82... Kg6 {[%clk 0:00:05.6]}
83. Nc5+ {[%clk 0:00:03.5]} 83... Kf6 {[%clk 0:00:05.1]} 84. hxg5+ {[%clk
0:00:03.7]} 84... Kxg5 {[%clk 0:00:05.1]} 85. Be4 {[%clk 0:00:04.2]} 85... Rc3
{[%clk 0:00:04.7]} 86. Ne6+ {[%clk 0:00:03.6]} 86... Kf6 {[%clk 0:00:05.1]} 87.
Nf8 {[%clk 0:00:03.7]} 87... Rc7 {[%clk 0:00:05]} 88. Nh7+ {[%clk 0:00:03.5]}
88... Ke6 {[%clk 0:00:04]} 89. Ng5+ {[%clk 0:00:03.7]} 89... Kf6 {[%clk
0:00:04.4]} 90. Kh4 {[%clk 0:00:04.2]} 90... Rc1 {[%clk 0:00:04]} 91. Kxh5
{[%clk 0:00:02.1]} 91... Rg1 {[%clk 0:00:04.5]} 92. Nh3 {[%clk 0:00:01.6]} 92...
Rh1 {[%clk 0:00:03.6]} 93. Kh4 {[%clk 0:00:02.5]} 93... Ke6 {[%clk 0:00:03.5]}
94. Kg3 {[%clk 0:00:03.4]} 94... Kf6 {[%clk 0:00:03.6]} 95. Nf2 {[%clk
0:00:04.3]} 95... Re1 {[%clk 0:00:03.6]} 96. Ng4+ {[%clk 0:00:05.2]} 96... Ke6
{[%clk 0:00:03.3]} 97. Kh4 {[%clk 0:00:05.7]} 97... Rh1+ {[%clk 0:00:03.4]} 98.
Kg5 {[%clk 0:00:06.2]} 98... Rh8 {[%clk 0:00:04.3]} 99. Bf5+ {[%clk 0:00:06.6]}
99... Kd5 {[%clk 0:00:04.1]} 100. Nf6+ {[%clk 0:00:06.5]} 100... Kd4 {[%clk
0:00:03.4]} 101. Bg6 {[%clk 0:00:06.1]} 101... Rh1 {[%clk 0:00:02.8]} 102. Kf5
{[%clk 0:00:05.9]} 102... Ke3 {[%clk 0:00:02.8]} 103. Bh5 {[%clk 0:00:05.8]}
103... Kd4 {[%clk 0:00:01.7]} 104. Bg4 {[%clk 0:00:05.6]} 104... Rg1 {[%clk
0:00:01.9]} 105. Nd7 {[%clk 0:00:05.5]} 105... Rf1 {[%clk 0:00:02.3]} 106. Nxe5
{[%clk 0:00:05.1]} 106... Ra1 {[%clk 0:00:02.6]} 107. Ng6 {[%clk 0:00:05.2]}
107... Kd5 {[%clk 0:00:03]} 108. f4 {[%clk 0:00:04.7]} 108... Kd6 {[%clk
0:00:03.6]} 109. Kf6 {[%clk 0:00:04.6]} 109... Ra8 {[%clk 0:00:03.9]} 110. f5
{[%clk 0:00:04.7]} 110... Kd5 {[%clk 0:00:04.2]} 111. Bf3+ {[%clk 0:00:04.7]}
111... Kd4 {[%clk 0:00:03.9]} 112. Bxa8 {[%clk 0:00:05.6]} 112... Kc5 {[%clk
0:00:02.5]} 113. Kg7 {[%clk 0:00:06.5]} 113... Kd6 {[%clk 0:00:03.4]} 114. f6
{[%clk 0:00:07.2]} 114... Ke6 {[%clk 0:00:02.9]} 115. f7 {[%clk 0:00:07.6]}
115... Kd7 {[%clk 0:00:02.7]} 116. Bc6+ {[%clk 0:00:07.3]} 116... Kc7 {[%clk
0:00:01.8]} 117. f8=Q {[%clk 0:00:07.1]} 117... Kb6 {[%clk 0:00:02.2]} 118. Qd6
{[%clk 0:00:06.7]} 118... Ka7 {[%clk 0:00:02.2]} 119. Ne5 {[%clk 0:00:06.3]}
119... Ka6 {[%clk 0:00:03.1]} 120. Nc4 {[%clk 0:00:05.3]} 120... Ka7 {[%clk
0:00:02.9]} 121. Qc7+ {[%clk 0:00:05.6]} 121... Ka6 {[%clk 0:00:02.8]} 122. Qb7#
{[%clk 0:00:06.5]} 1-0

[Event "*** Titled Tuesday Blitz"]
[Site "Chess.com"]
[Date "2020.04.28"]
[Round "4"]
[White "Evgeny81"]
[Black "zivicd"]
[Result "1-0"]
[WhiteElo "2690"]
[BlackElo "2228"]
[TimeControl "180+1"]
[EndTime "10:34:53 PDT"]
[Termination "Evgeny81 won by resignation"]

1. d4 {[%clk 0:03:00.9]} 1... Nf6 {[%clk 0:02:59.2]} 2. c4 {[%clk 0:02:58.6]}
2... e5 {[%clk 0:02:59.2]} 3. dxe5 {[%clk 0:02:57.6]} 3... Ng4 {[%clk
0:02:59.3]} 4. Nf3 {[%clk 0:02:57.4]} 4... Nc6 {[%clk 0:02:58.7]} 5. e3 {[%clk
0:02:57.6]} 5... Bb4+ {[%clk 0:02:49.6]} 6. Bd2 {[%clk 0:02:56.6]} 6... Qe7
{[%clk 0:02:46.2]} 7. Nc3 {[%clk 0:02:53.8]} 7... Ngxe5 {[%clk 0:02:32.1]} 8.
Be2 {[%clk 0:02:52.1]} 8... Nxf3+ {[%clk 0:02:27.5]} 9. Bxf3 {[%clk 0:02:52.1]}
9... Ne5 {[%clk 0:02:28.1]} 10. Be2 {[%clk 0:02:52.5]} 10... d6 {[%clk
0:02:22.7]} 11. O-O {[%clk 0:02:50.1]} 11... Bf5 {[%clk 0:02:15.9]} 12. Nd5
{[%clk 0:02:46.8]} 1-0

[Event "*** Titled Tuesday Blitz"]
[Site "Chess.com"]
[Date "2020.04.28"]
[Round "4"]
[White "powermove"]
[Black "gmelviro"]
[Result "0-1"]
[WhiteElo "1644"]
[BlackElo "2150"]
[TimeControl "180+1"]
[EndTime "10:35:15 PDT"]
[Termination "gmelviro won by resignation"]

1. e4 {[%clk 0:03:00.9]} 1... e5 {[%clk 0:02:59.9]} 2. Nf3 {[%clk 0:03:00.8]}
2... Nc6 {[%clk 0:03:00.1]} 3. Bb5 {[%clk 0:03:00.7]} 3... a6 {[%clk 0:03:00.3]}
4. Ba4 {[%clk 0:03:00.2]} 4... Nf6 {[%clk 0:03:00.5]} 5. Qe2 {[%clk 0:03:00.3]}
5... b5 {[%clk 0:02:57.9]} 6. Bb3 {[%clk 0:02:59.5]} 6... Be7 {[%clk 0:02:58.5]}
7. O-O {[%clk 0:02:52.1]} 7... O-O {[%clk 0:02:58]} 8. a4 {[%clk 0:02:48.9]}
8... Rb8 {[%clk 0:02:57.1]} 9. c3 {[%clk 0:02:40.4]} 9... d6 {[%clk 0:02:56.8]}
10. Rd1 {[%clk 0:02:35.9]} 10... Bg4 {[%clk 0:02:52.5]} 11. d3 {[%clk
0:02:35.5]} 11... h6 {[%clk 0:02:47.2]} 12. Nbd2 {[%clk 0:02:32.4]} 12... Nh7
{[%clk 0:02:46.7]} 13. h3 {[%clk 0:02:30.1]} 13... Bh5 {[%clk 0:02:46]} 14. Nf1
{[%clk 0:02:29.1]} 14... Ng5 {[%clk 0:02:32.7]} 15. g4 {[%clk 0:02:27.2]} 15...
Nxh3+ {[%clk 0:02:28.3]} 0-1

[Event "*** Titled Tuesday Blitz"]
[Site "Chess.com"]
[Date "2020.04.28"]
[Round "4"]
[White "MoreChessJulia"]
[Black "politeplayer"]
[Result "0-1"]
[WhiteElo "1771"]
[BlackElo "2198"]
[TimeControl "180+1"]
[EndTime "10:35:29 PDT"]
[Termination "politeplayer won by resignation"]

1. d4 {[%clk 0:02:59.4]} 1... Nf6 {[%clk 0:02:47.8]} 2. c4 {[%clk 0:02:58.7]}
2... c5 {[%clk 0:02:47.2]} 3. d5 {[%clk 0:02:57.1]} 3... e6 {[%clk 0:02:47.7]}
4. Nc3 {[%clk 0:02:56.5]} 4... exd5 {[%clk 0:02:47.3]} 5. cxd5 {[%clk
0:02:56.6]} 5... d6 {[%clk 0:02:47.8]} 6. e4 {[%clk 0:02:57]} 6... a6 {[%clk
0:02:46.8]} 7. a3 {[%clk 0:02:53]} 7... g6 {[%clk 0:02:45.7]} 8. h3 {[%clk
0:02:52.6]} 8... Bg7 {[%clk 0:02:45.3]} 9. Nf3 {[%clk 0:02:52.5]} 9... O-O
{[%clk 0:02:45.8]} 10. Bd3 {[%clk 0:02:51.9]} 10... Re8 {[%clk 0:02:45.9]} 11.
O-O {[%clk 0:02:51.1]} 11... b5 {[%clk 0:02:41.5]} 12. Qc2 {[%clk 0:02:44.2]}
12... c4 {[%clk 0:02:37.6]} 13. Be2 {[%clk 0:02:42]} 13... Nbd7 {[%clk
0:02:38.1]} 14. Be3 {[%clk 0:02:35.7]} 14... Qc7 {[%clk 0:02:34.8]} 15. Bd4
{[%clk 0:02:35.2]} 15... Nc5 {[%clk 0:02:31.9]} 16. Nd2 {[%clk 0:02:34.2]} 16...
Rb8 {[%clk 0:02:22.5]} 17. Rfe1 {[%clk 0:02:32.2]} 17... Nfd7 {[%clk 0:02:20]}
18. Bf1 {[%clk 0:02:29.8]} 18... Bxd4 {[%clk 0:02:17.8]} 0-1

[Event "*** Titled Tuesday Blitz"]
[Site "Chess.com"]
[Date "2020.04.28"]
[Round "4"]
[White "DFeco"]
[Black "relaxx87"]
[Result "0-1"]
[WhiteElo "2186"]
[BlackElo "2691"]
[TimeControl "180+1"]
[EndTime "10:35:32 PDT"]
[Termination "relaxx87 won by resignation"]

1. c4 {[%clk 0:03:00.9]} 1... c5 {[%clk 0:02:58.1]} 2. g3 {[%clk 0:03:00.5]}
2... Nc6 {[%clk 0:02:58]} 3. Bg2 {[%clk 0:03:00.8]} 3... g6 {[%clk 0:02:58.1]}
4. Nc3 {[%clk 0:03:01.4]} 4... Bg7 {[%clk 0:02:57.9]} 5. a3 {[%clk 0:03:02]}
5... d6 {[%clk 0:02:57.9]} 6. Nf3 {[%clk 0:03:00.9]} 6... Bf5 {[%clk 0:02:57.5]}
7. e4 {[%clk 0:02:57.4]} 7... Bg4 {[%clk 0:02:57.1]} 8. h3 {[%clk 0:02:56.3]}
8... Bxf3 {[%clk 0:02:56.7]} 9. Bxf3 {[%clk 0:02:55.9]} 9... Nf6 {[%clk
0:02:57.6]} 10. O-O {[%clk 0:02:54.6]} 10... O-O {[%clk 0:02:57.4]} 11. d3
{[%clk 0:02:54.6]} 11... Nd4 {[%clk 0:02:57.2]} 12. Bg2 {[%clk 0:02:53.9]} 12...
Rb8 {[%clk 0:02:57.3]} 13. Ne2 {[%clk 0:02:49.8]} 13... Nd7 {[%clk 0:02:53.1]}
14. Nxd4 {[%clk 0:02:49.3]} 14... Bxd4 {[%clk 0:02:54]} 15. Rb1 {[%clk
0:02:48.8]} 15... b5 {[%clk 0:02:53.1]} 16. Bd2 {[%clk 0:02:41.2]} 16... bxc4
{[%clk 0:02:51.1]} 17. dxc4 {[%clk 0:02:39.3]} 17... Rxb2 {[%clk 0:02:50.4]} 18.
Rxb2 {[%clk 0:02:38.6]} 18... Bxb2 {[%clk 0:02:51.3]} 19. Qa4 {[%clk 0:02:35.7]}
19... Qc7 {[%clk 0:02:50]} 20. Rb1 {[%clk 0:02:33.7]} 20... Rb8 {[%clk
0:02:48.1]} 21. Ba5 {[%clk 0:02:21.1]} 21... Qc8 {[%clk 0:02:45.4]} 22. f4
{[%clk 0:02:04.8]} 22... Bd4+ {[%clk 0:02:43.8]} 23. Kh2 {[%clk 0:02:01.5]}
23... Rxb1 {[%clk 0:02:42.7]} 0-1

[Event "*** Titled Tuesday Blitz"]
[Site "Chess.com"]
[Date "2020.04.28"]
[Round "4"]
[White "Karacsonyi_Gellert"]
[Black "Akhayan"]
[Result "0-1"]
[WhiteElo "2436"]
[BlackElo "2300"]
[TimeControl "180+1"]
[EndTime "10:36:11 PDT"]
[Termination "Akhayan won by resignation"]

1. e4 {[%clk 0:03:00.9]} 1... e6 {[%clk 0:02:59.2]} 2. d4 {[%clk 0:02:59.5]}
2... d5 {[%clk 0:02:59.2]} 3. Nd2 {[%clk 0:02:59.3]} 3... c5 {[%clk 0:02:58.1]}
4. exd5 {[%clk 0:02:59.2]} 4... Qxd5 {[%clk 0:02:53.5]} 5. Ngf3 {[%clk
0:03:00.1]} 5... cxd4 {[%clk 0:02:53.3]} 6. Bc4 {[%clk 0:02:59.3]} 6... Qd6
{[%clk 0:02:53.3]} 7. O-O {[%clk 0:02:57.4]} 7... a6 {[%clk 0:02:52.8]} 8. Ne4
{[%clk 0:02:57.1]} 8... Qc7 {[%clk 0:02:51.4]} 9. Bb3 {[%clk 0:02:53.7]} 9...
Be7 {[%clk 0:02:47.6]} 10. Nxd4 {[%clk 0:02:52.8]} 10... Nf6 {[%clk 0:02:46]}
11. Nxf6+ {[%clk 0:02:50.1]} 11... Bxf6 {[%clk 0:02:46.2]} 12. c3 {[%clk
0:02:50.7]} 12... O-O {[%clk 0:02:45.6]} 13. Qf3 {[%clk 0:02:51.1]} 13... Bxd4
{[%clk 0:02:26.8]} 14. cxd4 {[%clk 0:02:50.4]} 14... Nc6 {[%clk 0:02:27.2]} 15.
Bf4 {[%clk 0:02:44.8]} 15... Qb6 {[%clk 0:02:20.9]} 16. d5 {[%clk 0:02:43.1]}
16... exd5 {[%clk 0:02:08.8]} 17. Bxd5 {[%clk 0:02:44]} 17... Bd7 {[%clk
0:01:54.8]} 18. Bd6 {[%clk 0:02:41.2]} 18... Nd4 {[%clk 0:01:53.5]} 19. Qd1
{[%clk 0:02:22.1]} 19... Qxd6 {[%clk 0:01:48.8]} 20. Qxd4 {[%clk 0:02:22]} 20...
Be6 {[%clk 0:01:43]} 21. Rad1 {[%clk 0:02:20.9]} 21... Rad8 {[%clk 0:01:40.5]}
0-1

[Event "*** Titled Tuesday Blitz"]
[Site "Chess.com"]
[Date "2020.04.28"]
[Round "4"]
[White "Gyapiking"]
[Black "JakeCarlosBanawa"]
[Result "1-0"]
[WhiteElo "2502"]
[BlackElo "2314"]
[TimeControl "180+1"]
[EndTime "10:36:23 PDT"]
[Termination "Gyapiking won by resignation"]

1. c4 {[%clk 0:03:00.9]} 1... Nf6 {[%clk 0:02:59]} 2. g3 {[%clk 0:02:58.7]} 2...
e6 {[%clk 0:02:58.7]} 3. Bg2 {[%clk 0:02:58.5]} 3... d5 {[%clk 0:02:48.9]} 4.
Nf3 {[%clk 0:02:58.4]} 4... b6 {[%clk 0:02:45.8]} 5. O-O {[%clk 0:02:57]} 5...
Bb7 {[%clk 0:02:45.8]} 6. b3 {[%clk 0:02:56.8]} 6... Be7 {[%clk 0:02:43.9]} 7.
Bb2 {[%clk 0:02:56.7]} 7... O-O {[%clk 0:02:44.6]} 8. e3 {[%clk 0:02:54.4]} 8...
dxc4 {[%clk 0:02:36.5]} 9. bxc4 {[%clk 0:02:53.7]} 9... c5 {[%clk 0:02:35.7]}
10. Nc3 {[%clk 0:02:53.1]} 10... Nbd7 {[%clk 0:02:33.6]} 11. Qe2 {[%clk
0:02:53]} 11... Rc8 {[%clk 0:02:25]} 12. Nh4 {[%clk 0:02:50.6]} 12... Bxg2
{[%clk 0:02:18.3]} 13. Nxg2 {[%clk 0:02:50.1]} 13... Ne5 {[%clk 0:02:13.6]} 14.
Nf4 {[%clk 0:02:35.5]} 14... g5 {[%clk 0:02:12.2]} 15. Ncd5 {[%clk 0:02:16.8]}
15... gxf4 {[%clk 0:02:00.2]} 16. Nxe7+ {[%clk 0:02:15.5]} 16... Qxe7 {[%clk
0:01:57.2]} 17. Bxe5 {[%clk 0:02:15.1]} 17... Nd7 {[%clk 0:01:31.4]} 18. Qg4+
{[%clk 0:02:13.7]} 1-0

[Event "*** Titled Tuesday Blitz"]
[Site "Chess.com"]
[Date "2020.04.28"]
[Round "4"]
[White "GracefulYear"]
[Black "calin_dragomirescu"]
[Result "1-0"]
[WhiteElo "2462"]
[BlackElo "2250"]
[TimeControl "180+1"]
[EndTime "10:36:27 PDT"]
[Termination "GracefulYear won by resignation"]

1. d4 {[%clk 0:03:00.9]} 1... g6 {[%clk 0:02:59.7]} 2. c4 {[%clk 0:03:00.4]}
2... Bg7 {[%clk 0:03:00.1]} 3. Nf3 {[%clk 0:03:00.7]} 3... Nf6 {[%clk
0:03:00.4]} 4. g3 {[%clk 0:03:01]} 4... d6 {[%clk 0:03:00.7]} 5. Bg2 {[%clk
0:03:01.3]} 5... O-O {[%clk 0:03:00.9]} 6. Nc3 {[%clk 0:03:01.8]} 6... Nbd7
{[%clk 0:03:01.5]} 7. O-O {[%clk 0:03:01.7]} 7... e5 {[%clk 0:03:01.4]} 8. e4
{[%clk 0:03:00.6]} 8... c6 {[%clk 0:03:01.7]} 9. Re1 {[%clk 0:02:55]} 9... exd4
{[%clk 0:03:00.9]} 10. Nxd4 {[%clk 0:02:54.7]} 10... Re8 {[%clk 0:03:01.2]} 11.
b3 {[%clk 0:02:48]} 11... Ng4 {[%clk 0:02:58.6]} 12. Bb2 {[%clk 0:02:43.4]}
12... h5 {[%clk 0:02:48.7]} 13. h3 {[%clk 0:02:40.9]} 13... Ngf6 {[%clk
0:02:47.4]} 14. Nc2 {[%clk 0:02:34.2]} 14... Qc7 {[%clk 0:02:38.5]} 15. Qd2
{[%clk 0:02:32.6]} 15... a5 {[%clk 0:02:36]} 16. Rad1 {[%clk 0:02:31.1]} 16...
Bf8 {[%clk 0:02:36.2]} 17. Qf4 {[%clk 0:02:01.3]} 17... Nh7 {[%clk 0:02:19.6]}
18. Ne2 {[%clk 0:01:45.3]} 18... Ne5 {[%clk 0:02:16.3]} 19. Ned4 {[%clk
0:01:40.7]} 19... Bh6 {[%clk 0:02:13.4]} 20. Qxh6 {[%clk 0:01:35.8]} 1-0

[Event "*** Titled Tuesday Blitz"]
[Site "Chess.com"]
[Date "2020.04.28"]
[Round "4"]
[White "Grandmaster2B"]
[Black "Khayala13"]
[Result "0-1"]
[WhiteElo "2492"]
[BlackElo "2336"]
[TimeControl "180+1"]
[EndTime "10:36:33 PDT"]
[Termination "Khayala13 won by resignation"]

1. e4 {[%clk 0:03:00.9]} 1... c5 {[%clk 0:03:00.2]} 2. Nf3 {[%clk 0:03:01.2]}
2... e6 {[%clk 0:02:59.8]} 3. d4 {[%clk 0:03:01.6]} 3... d5 {[%clk 0:02:59.2]}
4. exd5 {[%clk 0:02:54.7]} 4... exd5 {[%clk 0:03:00.1]} 5. dxc5 {[%clk
0:02:46.5]} 5... Bxc5 {[%clk 0:03:01]} 6. Nbd2 {[%clk 0:02:46.5]} 6... Ne7
{[%clk 0:02:57.7]} 7. Nb3 {[%clk 0:02:46.4]} 7... Bd6 {[%clk 0:02:58.1]} 8. Be2
{[%clk 0:02:45.2]} 8... Nbc6 {[%clk 0:02:57.9]} 9. O-O {[%clk 0:02:45.5]} 9...
O-O {[%clk 0:02:58.2]} 10. c3 {[%clk 0:02:45.4]} 10... Bc7 {[%clk 0:02:45.8]}
11. Bg5 {[%clk 0:02:42.2]} 11... Qd6 {[%clk 0:02:39.7]} 12. Bh4 {[%clk
0:02:09.6]} 12... Nf5 {[%clk 0:02:39.2]} 13. Bg3 {[%clk 0:02:10.2]} 13... Nxg3
{[%clk 0:02:38.9]} 14. fxg3 {[%clk 0:02:07.4]} 14... Bf5 {[%clk 0:02:30.7]} 15.
Nfd4 {[%clk 0:02:03.5]} 15... Be4 {[%clk 0:02:30.9]} 16. Kh1 {[%clk 0:01:51.8]}
16... Qh6 {[%clk 0:02:29.2]} 17. Qc1 {[%clk 0:01:46.7]} 17... Qg6 {[%clk
0:02:14.1]} 18. Bh5 {[%clk 0:01:25.8]} 18... Qxh5 {[%clk 0:02:09.7]} 0-1

[Event "*** Titled Tuesday Blitz"]
[Site "Chess.com"]
[Date "2020.04.28"]
[Round "4"]
[White "Aureliano-Buendia"]
[Black "DACF2905"]
[Result "1-0"]
[WhiteElo "2418"]
[BlackElo "2185"]
[TimeControl "180+1"]
[EndTime "10:36:39 PDT"]
[Termination "Aureliano-Buendia won by resignation"]

1. d4 {[%clk 0:03:00.7]} 1... Nf6 {[%clk 0:02:57.3]} 2. c4 {[%clk 0:03:00.6]}
2... e5 {[%clk 0:02:55.3]} 3. dxe5 {[%clk 0:03:00.3]} 3... Ng4 {[%clk
0:02:54.2]} 4. e4 {[%clk 0:03:00.6]} 4... Nxe5 {[%clk 0:02:53.9]} 5. f4 {[%clk
0:02:59.1]} 5... Ng6 {[%clk 0:02:52]} 6. Be3 {[%clk 0:02:59]} 6... Nc6 {[%clk
0:02:51.2]} 7. Nf3 {[%clk 0:02:57.9]} 7... d6 {[%clk 0:02:46.7]} 8. Nc3 {[%clk
0:02:55.9]} 8... Be7 {[%clk 0:02:42.5]} 9. Bd3 {[%clk 0:02:52.7]} 9... Bg4
{[%clk 0:02:39]} 10. O-O {[%clk 0:02:51.4]} 10... O-O {[%clk 0:02:38]} 11. h3
{[%clk 0:02:51]} 11... Bxf3 {[%clk 0:02:34.6]} 12. Qxf3 {[%clk 0:02:50.5]} 12...
Bf6 {[%clk 0:02:34.3]} 13. Nd5 {[%clk 0:02:45.8]} 13... Bd4 {[%clk 0:02:31.5]}
14. Rae1 {[%clk 0:02:36.5]} 14... Bxe3+ {[%clk 0:02:26.5]} 15. Rxe3 {[%clk
0:02:35.9]} 15... Nd4 {[%clk 0:02:26.1]} 16. Qg3 {[%clk 0:02:32.1]} 16... c6
{[%clk 0:02:25.9]} 17. Nc3 {[%clk 0:02:22.4]} 17... Qh4 {[%clk 0:02:23.6]} 18.
Qxh4 {[%clk 0:02:05.3]} 18... Nxh4 {[%clk 0:02:21.6]} 19. f5 {[%clk 0:02:06.2]}
19... d5 {[%clk 0:02:17.2]} 20. cxd5 {[%clk 0:02:02.8]} 20... cxd5 {[%clk
0:02:17.3]} 21. Nxd5 {[%clk 0:02:02]} 21... Rfe8 {[%clk 0:02:12.5]} 22. g3
{[%clk 0:01:55.6]} 22... Nhxf5 {[%clk 0:02:10.3]} 23. exf5 {[%clk 0:01:53.8]}
23... Rxe3 {[%clk 0:02:04.1]} 24. Nxe3 {[%clk 0:01:53.5]} 24... Re8 {[%clk
0:02:00.9]} 25. Kf2 {[%clk 0:01:53.1]} 1-0